[Event "Early-Titled-Tuesday-Blitz-July-09-2024"]
[Site "Chess.com"]
[Date "2024.07.09"]
[Round "7"]
[White "AA95"]
[Black "Mops_2004"]
[Result "0-1"]
[WhiteElo "2518"]
[BlackElo "2719"]
[TimeControl "180+1"]
[EndTime "9:20:15 PDT"]
[Termination "Mops_2004 won by resignation"]

1. Nf3 {[%clk 0:03:00.9]} 1... f5 {[%clk 0:02:58.7]} 2. g3 {[%clk 0:03:01.8]}
2... Nf6 {[%clk 0:02:57.4]} 3. Bg2 {[%clk 0:03:02.4]} 3... g6 {[%clk 0:02:58]}
4. O-O {[%clk 0:03:02.9]} 4... Bg7 {[%clk 0:02:58.3]} 5. d4 {[%clk 0:03:03.3]}
5... d6 {[%clk 0:02:58.1]} 6. c4 {[%clk 0:03:03]} 6... O-O {[%clk 0:02:57.6]} 7.
Nc3 {[%clk 0:03:03.6]} 7... c6 {[%clk 0:02:57.8]} 8. Bg5 {[%clk 0:03:02]} 8...
Nbd7 {[%clk 0:02:40.9]} 9. Qb3 {[%clk 0:02:59.6]} 9... Kh8 {[%clk 0:02:34.3]}
10. Rad1 {[%clk 0:02:59.3]} 10... Qc7 {[%clk 0:02:21.4]} 11. Qa3 {[%clk
0:02:50.5]} 11... e5 {[%clk 0:02:06.6]} 12. dxe5 {[%clk 0:02:39.3]} 12... dxe5
{[%clk 0:02:06.3]} 13. e4 {[%clk 0:02:32.9]} 13... h6 {[%clk 0:01:40.9]} 14. Bc1
{[%clk 0:02:20.6]} 14... f4 {[%clk 0:01:37]} 15. Nh4 {[%clk 0:01:58.1]} 15...
Kh7 {[%clk 0:01:34.5]} 16. Rd6 {[%clk 0:01:45.7]} 16... Rf7 {[%clk 0:01:29.1]}
17. gxf4 {[%clk 0:01:39.8]} 17... Bf8 {[%clk 0:01:21.9]} 18. fxe5 {[%clk
0:00:41.6]} 18... Nxe5 {[%clk 0:01:18]} 19. c5 {[%clk 0:00:36.9]} 19... Nc4
{[%clk 0:01:01.6]} 20. Qb3 {[%clk 0:00:34.6]} 20... Nxd6 {[%clk 0:01:01.6]} 21.
cxd6 {[%clk 0:00:34.6]} 21... Bxd6 {[%clk 0:01:01.2]} 22. f4 {[%clk 0:00:34.1]}
22... Ng4 {[%clk 0:00:43.9]} 23. Qc2 {[%clk 0:00:28.2]} 23... Bxf4 {[%clk
0:00:41.8]} 24. e5 {[%clk 0:00:20.7]} 24... Bxh2+ {[%clk 0:00:29.7]} 25. Kh1
{[%clk 0:00:21.1]} 25... Rxf1+ {[%clk 0:00:29.8]} 26. Bxf1 {[%clk 0:00:22]}
26... Qf7 {[%clk 0:00:26]} 27. Bd3 {[%clk 0:00:20.5]} 27... Nxe5 {[%clk
0:00:14.2]} 28. Kxh2 {[%clk 0:00:18.4]} 28... Nxd3 {[%clk 0:00:11.5]} 29. Qxd3
{[%clk 0:00:18.5]} 29... Qf2+ {[%clk 0:00:11.8]} 30. Ng2 {[%clk 0:00:18.5]}
30... Bf5 {[%clk 0:00:10]} 31. Qe3 {[%clk 0:00:15.9]} 31... Qxe3 {[%clk
0:00:09.6]} 32. Bxe3 {[%clk 0:00:16.1]} 32... b6 {[%clk 0:00:09.8]} 33. Nh4
{[%clk 0:00:13.5]} 33... Bd3 {[%clk 0:00:09]} 34. Nf3 {[%clk 0:00:13.4]} 34...
Re8 {[%clk 0:00:09.1]} 35. Bd4 {[%clk 0:00:10.8]} 35... g5 {[%clk 0:00:09.1]}
36. Ne5 {[%clk 0:00:10.7]} 36... c5 {[%clk 0:00:06]} 37. Bxc5 {[%clk 0:00:09.6]}
37... Rxe5 {[%clk 0:00:05.4]} 38. Bd6 {[%clk 0:00:08.7]} 38... Re6 {[%clk
0:00:05.2]} 39. Bb8 {[%clk 0:00:08.8]} 39... a6 {[%clk 0:00:04.7]} 40. Kg3
{[%clk 0:00:09.2]} 40... Kg6 {[%clk 0:00:05]} 41. Bc7 {[%clk 0:00:08.8]} 41...
h5 {[%clk 0:00:05.5]} 42. Nd5 {[%clk 0:00:08.8]} 42... h4+ {[%clk 0:00:06]} 43.
Kg2 {[%clk 0:00:08.9]} 43... Be4+ {[%clk 0:00:06.1]} 44. Kh2 {[%clk 0:00:09.3]}
44... Bxd5 {[%clk 0:00:06.9]} 45. Bb8 {[%clk 0:00:08.8]} 45... Re2+ {[%clk
0:00:07.3]} 46. Kg1 {[%clk 0:00:08.4]} 46... Be6 {[%clk 0:00:08.2]} 0-1

[Event "Early-Titled-Tuesday-Blitz-July-09-2024"]
[Site "Chess.com"]
[Date "2024.07.09"]
[Round "7"]
[White "NM_Antelacus"]
[Black "Kopytkin"]
[Result "0-1"]
[WhiteElo "2287"]
[BlackElo "2421"]
[TimeControl "180+1"]
[EndTime "9:20:15 PDT"]
[Termination "Kopytkin won on time"]

1. e4 {[%clk 0:03:00.9]} 1... Nf6 {[%clk 0:02:58.9]} 2. e5 {[%clk 0:03:00.1]}
2... Nd5 {[%clk 0:02:58.9]} 3. d4 {[%clk 0:03:00.1]} 3... d6 {[%clk 0:02:59.5]}
4. Nf3 {[%clk 0:03:00.2]} 4... Bg4 {[%clk 0:02:58.2]} 5. Be2 {[%clk 0:02:58.5]}
5... e6 {[%clk 0:02:58.5]} 6. O-O {[%clk 0:02:57.5]} 6... Be7 {[%clk 0:02:58.9]}
7. h3 {[%clk 0:02:56.3]} 7... Bh5 {[%clk 0:02:58.6]} 8. c4 {[%clk 0:02:44.6]}
8... Nb6 {[%clk 0:02:58.6]} 9. b3 {[%clk 0:02:44.3]} 9... O-O {[%clk 0:02:57.6]}
10. Bb2 {[%clk 0:02:44.3]} 10... a5 {[%clk 0:02:54]} 11. Nc3 {[%clk 0:02:41.3]}
11... d5 {[%clk 0:02:50.8]} 12. c5 {[%clk 0:02:39.8]} 12... N6d7 {[%clk
0:02:49.6]} 13. a3 {[%clk 0:02:38.8]} 13... Nc6 {[%clk 0:02:48.3]} 14. Nb5
{[%clk 0:02:33.3]} 14... b6 {[%clk 0:02:44.7]} 15. cxb6 {[%clk 0:02:25.7]} 15...
cxb6 {[%clk 0:02:45]} 16. Rc1 {[%clk 0:02:23]} 16... Rc8 {[%clk 0:02:44.6]} 17.
Qd2 {[%clk 0:02:10.4]} 17... f6 {[%clk 0:02:40.9]} 18. exf6 {[%clk 0:02:06]}
18... Nxf6 {[%clk 0:02:41]} 19. Ne5 {[%clk 0:01:46.9]} 19... Nxe5 {[%clk
0:02:34.3]} 20. dxe5 {[%clk 0:01:46.1]} 20... Ne4 {[%clk 0:02:33.9]} 21. Qd3
{[%clk 0:01:35.4]} 21... Rxc1 {[%clk 0:02:16.8]} 22. Bxc1 {[%clk 0:01:30.9]}
22... Nc5 {[%clk 0:02:15.5]} 23. Qd1 {[%clk 0:01:27.1]} 23... Bxe2 {[%clk
0:02:15.4]} 24. Qxe2 {[%clk 0:01:26.5]} 24... Nxb3 {[%clk 0:02:16]} 25. Bb2
{[%clk 0:01:23.4]} 25... Nc5 {[%clk 0:02:15.1]} 26. Bd4 {[%clk 0:01:20.4]} 26...
Rf4 {[%clk 0:02:04.2]} 27. Be3 {[%clk 0:01:15.1]} 27... Rf5 {[%clk 0:01:58]} 28.
f4 {[%clk 0:01:11.1]} 28... g6 {[%clk 0:01:56.2]} 29. g4 {[%clk 0:01:08.4]}
29... Rf8 {[%clk 0:01:54.8]} 30. Bd4 {[%clk 0:01:08.5]} 30... Bh4 {[%clk
0:01:52]} 31. Qd3 {[%clk 0:01:07.8]} 31... Ne4 {[%clk 0:01:49.2]} 32. Qc2 {[%clk
0:01:08.7]} 32... Qc8 {[%clk 0:01:46.6]} 33. Rc1 {[%clk 0:01:04.2]} 33... Qxc2
{[%clk 0:01:44.5]} 34. Rxc2 {[%clk 0:01:04.3]} 34... Rxf4 {[%clk 0:01:44.7]} 35.
Nc7 {[%clk 0:00:59.1]} 35... Nc5 {[%clk 0:01:36]} 36. Bxc5 {[%clk 0:00:56.4]}
36... bxc5 {[%clk 0:01:35.9]} 37. Nxe6 {[%clk 0:00:55.9]} 37... Rc4 {[%clk
0:01:14.7]} 38. Rb2 {[%clk 0:00:22]} 38... Kf7 {[%clk 0:01:11.5]} 39. Nd8+
{[%clk 0:00:16.8]} 39... Ke8 {[%clk 0:01:06.6]} 40. Nb7 {[%clk 0:00:16.3]} 40...
Ra4 {[%clk 0:00:57.7]} 41. Nxc5 {[%clk 0:00:12.9]} 41... Rxa3 {[%clk 0:00:57.9]}
42. Rb7 {[%clk 0:00:11.6]} 42... Ra2 {[%clk 0:00:53.9]} 43. Ne6 {[%clk
0:00:07.1]} 43... d4 {[%clk 0:00:47.1]} 44. Rc7 {[%clk 0:00:05.6]} 44... d3
{[%clk 0:00:23.5]} 45. Ng7+ {[%clk 0:00:05.2]} 45... Kf8 {[%clk 0:00:23.6]} 46.
Ne6+ {[%clk 0:00:05.5]} 46... Kg8 {[%clk 0:00:24]} 47. Rd7 {[%clk 0:00:03.8]}
47... d2 {[%clk 0:00:18.2]} 0-1

[Event "Early-Titled-Tuesday-Blitz-July-09-2024"]
[Site "Chess.com"]
[Date "2024.07.09"]
[Round "7"]
[White "malakismayil"]
[Black "Evan_Attaker"]
[Result "0-1"]
[WhiteElo "2527"]
[BlackElo "2734"]
[TimeControl "180+1"]
[EndTime "9:20:18 PDT"]
[Termination "Evan_Attaker won on time"]

1. e4 {[%clk 0:03:00.9]} 1... d6 {[%clk 0:02:58.5]} 2. d4 {[%clk 0:03:00.4]}
2... Nf6 {[%clk 0:02:57.3]} 3. Nc3 {[%clk 0:03:00.8]} 3... g6 {[%clk 0:02:57.5]}
4. Be3 {[%clk 0:03:00.5]} 4... Bg7 {[%clk 0:02:57.2]} 5. f3 {[%clk 0:03:01]}
5... b6 {[%clk 0:02:56.8]} 6. Qd2 {[%clk 0:03:01.4]} 6... h5 {[%clk 0:02:56.4]}
7. Bd3 {[%clk 0:03:01.8]} 7... Bb7 {[%clk 0:02:55.9]} 8. Nge2 {[%clk 0:03:02.5]}
8... Nbd7 {[%clk 0:02:55.8]} 9. h3 {[%clk 0:02:59.3]} 9... c5 {[%clk 0:02:54.2]}
10. f4 {[%clk 0:02:56.2]} 10... c4 {[%clk 0:02:52.1]} 11. Bxc4 {[%clk
0:02:55.4]} 11... Nxe4 {[%clk 0:02:52.2]} 12. Nxe4 {[%clk 0:02:55.8]} 12... Bxe4
{[%clk 0:02:53.1]} 13. Nc3 {[%clk 0:02:52.9]} 13... Bb7 {[%clk 0:02:51.9]} 14.
Bd5 {[%clk 0:02:51.8]} 14... Bxd5 {[%clk 0:02:48.9]} 15. Nxd5 {[%clk 0:02:52.7]}
15... Rc8 {[%clk 0:02:48.6]} 16. c3 {[%clk 0:02:48.6]} 16... a5 {[%clk
0:02:40.3]} 17. Bf2 {[%clk 0:02:33.3]} 17... e6 {[%clk 0:02:38.1]} 18. Ne3
{[%clk 0:02:33.3]} 18... d5 {[%clk 0:02:37.9]} 19. O-O {[%clk 0:02:30.8]} 19...
Nf6 {[%clk 0:02:33.6]} 20. Qe2 {[%clk 0:02:23.9]} 20... Qd7 {[%clk 0:02:29.9]}
21. Nc2 {[%clk 0:02:23.4]} 21... Ne4 {[%clk 0:02:25.6]} 22. Ne1 {[%clk
0:02:22.9]} 22... Bf6 {[%clk 0:02:00.1]} 23. Nd3 {[%clk 0:02:22]} 23... Qb5
{[%clk 0:01:58.2]} 24. Rfe1 {[%clk 0:02:18.9]} 24... h4 {[%clk 0:01:55.1]} 25.
a4 {[%clk 0:01:57.6]} 25... Qc4 {[%clk 0:01:51.8]} 26. Ne5 {[%clk 0:01:52.2]}
26... Qxe2 {[%clk 0:01:49.4]} 27. Rxe2 {[%clk 0:01:52]} 27... Bxe5 {[%clk
0:01:44.7]} 28. fxe5 {[%clk 0:01:52.9]} 28... Rc4 {[%clk 0:01:42.9]} 29. Ra3
{[%clk 0:01:38.7]} 29... Ke7 {[%clk 0:01:37.6]} 30. Be1 {[%clk 0:01:28]} 30...
g5 {[%clk 0:01:35.4]} 31. Re3 {[%clk 0:01:14.7]} 31... Rb8 {[%clk 0:01:31.9]}
32. b3 {[%clk 0:00:55.2]} 32... Rc6 {[%clk 0:01:27.9]} 33. c4 {[%clk 0:00:55.3]}
33... f5 {[%clk 0:01:24.5]} 34. exf6+ {[%clk 0:00:54.6]} 34... Nxf6 {[%clk
0:01:23.1]} 35. cxd5 {[%clk 0:00:39.6]} 35... Nxd5 {[%clk 0:01:22.3]} 36. Re5
{[%clk 0:00:40.2]} 36... Rc1 {[%clk 0:01:17.1]} 37. Ra2 {[%clk 0:00:39.1]} 37...
Rg8 {[%clk 0:01:09.7]} 38. Rae2 {[%clk 0:00:38.3]} 38... Nf4 {[%clk 0:01:06.3]}
39. R2e3 {[%clk 0:00:18.1]} 39... Kf6 {[%clk 0:01:02.8]} 40. Kh2 {[%clk
0:00:16.5]} 40... Rgc8 {[%clk 0:00:58.5]} 41. Rf3 {[%clk 0:00:06.4]} 41... R8c2
{[%clk 0:00:48.2]} 42. Rf2 {[%clk 0:00:05.8]} 42... Rxf2 {[%clk 0:00:45.9]} 43.
Bxf2 {[%clk 0:00:06.7]} 43... Rc2 {[%clk 0:00:46.3]} 44. Kg1 {[%clk 0:00:06.4]}
44... Rxf2 {[%clk 0:00:45.6]} 45. Kxf2 {[%clk 0:00:06.3]} 45... Nd3+ {[%clk
0:00:45.6]} 46. Ke3 {[%clk 0:00:06.5]} 46... Nxe5 {[%clk 0:00:46.5]} 47. dxe5+
{[%clk 0:00:06.9]} 47... Kxe5 {[%clk 0:00:47.4]} 48. Kf3 {[%clk 0:00:07.5]}
48... Kf5 {[%clk 0:00:47.3]} 49. Ke3 {[%clk 0:00:07.2]} 49... e5 {[%clk
0:00:47.8]} 50. Kf3 {[%clk 0:00:06.7]} 50... e4+ {[%clk 0:00:47.6]} 51. Ke3
{[%clk 0:00:02.4]} 51... Ke5 {[%clk 0:00:47.1]} 0-1

[Event "Early-Titled-Tuesday-Blitz-July-09-2024"]
[Site "Chess.com"]
[Date "2024.07.09"]
[Round "7"]
[White "NikitaShnadrygin"]
[Black "yesilikeorangejuice"]
[Result "1-0"]
[WhiteElo "2733"]
[BlackElo "2523"]
[TimeControl "180+1"]
[EndTime "9:20:19 PDT"]
[Termination "NikitaShnadrygin won by resignation"]

1. e4 {[%clk 0:03:00.9]} 1... e6 {[%clk 0:02:56.2]} 2. d4 {[%clk 0:03:00.3]}
2... d5 {[%clk 0:02:55.5]} 3. Nd2 {[%clk 0:03:01.2]} 3... Be7 {[%clk 0:02:55.4]}
4. c3 {[%clk 0:02:49.8]} 4... dxe4 {[%clk 0:02:50]} 5. Nxe4 {[%clk 0:02:49.6]}
5... Nf6 {[%clk 0:02:50.9]} 6. Nxf6+ {[%clk 0:02:48.7]} 6... Bxf6 {[%clk
0:02:51.8]} 7. Nf3 {[%clk 0:02:48.9]} 7... O-O {[%clk 0:02:51.6]} 8. Bd3 {[%clk
0:02:48.5]} 8... b6 {[%clk 0:02:51.6]} 9. Be4 {[%clk 0:02:45.6]} 9... c6 {[%clk
0:02:51.9]} 10. O-O {[%clk 0:02:45.4]} 10... Bb7 {[%clk 0:02:51.9]} 11. Bf4
{[%clk 0:02:44.8]} 11... Nd7 {[%clk 0:02:50.3]} 12. Qc2 {[%clk 0:02:43.6]} 12...
g6 {[%clk 0:02:43.8]} 13. Rad1 {[%clk 0:02:42.4]} 13... Re8 {[%clk 0:02:36.9]}
14. c4 {[%clk 0:02:37.4]} 14... Rc8 {[%clk 0:02:35.9]} 15. Rfe1 {[%clk
0:02:36.3]} 15... Bg7 {[%clk 0:02:15.1]} 16. b3 {[%clk 0:02:24.8]} 16... Nf6
{[%clk 0:02:14.5]} 17. Bd3 {[%clk 0:02:22.4]} 17... Qe7 {[%clk 0:02:10.7]} 18.
c5 {[%clk 0:02:11.3]} 18... Nd5 {[%clk 0:02:08.2]} 19. Bd6 {[%clk 0:02:11.4]}
19... Qd8 {[%clk 0:02:05.7]} 20. a3 {[%clk 0:02:09.6]} 20... Bf8 {[%clk
0:01:57.9]} 21. Bxf8 {[%clk 0:02:09]} 21... Rxf8 {[%clk 0:01:56.2]} 22. b4
{[%clk 0:02:08.7]} 22... Nf4 {[%clk 0:01:46.2]} 23. Bf1 {[%clk 0:02:07.4]} 23...
Qf6 {[%clk 0:01:41.9]} 24. Ne5 {[%clk 0:02:04.3]} 24... Rfd8 {[%clk 0:01:40.8]}
25. g3 {[%clk 0:02:02.3]} 25... Nd5 {[%clk 0:01:29.1]} 26. Qd2 {[%clk
0:01:47.5]} 26... Ne7 {[%clk 0:01:27.9]} 27. Ng4 {[%clk 0:01:36.1]} 27... Qg7
{[%clk 0:01:25.4]} 28. Bc4 {[%clk 0:01:19.7]} 28... Nf5 {[%clk 0:01:22.5]} 29.
Re4 {[%clk 0:01:11.6]} 29... Rc7 {[%clk 0:00:58.5]} 30. Ne5 {[%clk 0:01:01.6]}
30... Bc8 {[%clk 0:00:56.3]} 31. Qe2 {[%clk 0:00:55.3]} 31... b5 {[%clk
0:00:44.7]} 32. Bb3 {[%clk 0:00:52.6]} 32... Ne7 {[%clk 0:00:38.5]} 33. Rf4
{[%clk 0:00:41.1]} 33... Nd5 {[%clk 0:00:37.1]} 34. Rf3 {[%clk 0:00:35.9]} 34...
h5 {[%clk 0:00:35.3]} 35. h4 {[%clk 0:00:31.5]} 35... f6 {[%clk 0:00:29.1]} 36.
Nd3 {[%clk 0:00:20.5]} 36... Nc3 {[%clk 0:00:28]} 37. Qe3 {[%clk 0:00:14.2]}
37... Nxd1 {[%clk 0:00:27.1]} 38. Bxd1 {[%clk 0:00:15.1]} 38... Rcd7 {[%clk
0:00:25.1]} 39. Rf4 {[%clk 0:00:03.8]} 39... e5 {[%clk 0:00:21]} 40. Bb3+ {[%clk
0:00:04.4]} 40... Kh8 {[%clk 0:00:19.9]} 41. Re4 {[%clk 0:00:03.5]} 41... Rxd4
{[%clk 0:00:19.8]} 42. Kg2 {[%clk 0:00:03.1]} 42... Bf5 {[%clk 0:00:19.4]} 43.
Rxd4 {[%clk 0:00:03.5]} 43... Rxd4 {[%clk 0:00:19.7]} 44. Nf4 {[%clk 0:00:04.2]}
44... Qd7 {[%clk 0:00:17.5]} 45. Ne2 {[%clk 0:00:01.9]} 45... Rd3 {[%clk
0:00:17.7]} 46. Qh6+ {[%clk 0:00:02.2]} 1-0

[Event "Early-Titled-Tuesday-Blitz-July-09-2024"]
[Site "Chess.com"]
[Date "2024.07.09"]
[Round "7"]
[White "Sic_Transit_GM"]
[Black "Andrei_Skvortsov"]
[Result "1/2-1/2"]
[WhiteElo "2607"]
[BlackElo "2801"]
[TimeControl "180+1"]
[EndTime "9:20:20 PDT"]
[Termination "Game drawn by repetition"]

1. Nf3 {[%clk 0:03:00.9]} 1... d5 {[%clk 0:02:59.8]} 2. e3 {[%clk 0:03:00.5]}
2... g6 {[%clk 0:02:59.9]} 3. c4 {[%clk 0:03:00.3]} 3... dxc4 {[%clk 0:02:56]}
4. Bxc4 {[%clk 0:02:59.2]} 4... Bg7 {[%clk 0:02:56.5]} 5. Nc3 {[%clk 0:02:49.4]}
5... Nf6 {[%clk 0:02:56.6]} 6. O-O {[%clk 0:02:49.8]} 6... O-O {[%clk
0:02:56.8]} 7. d4 {[%clk 0:02:49.7]} 7... Nbd7 {[%clk 0:02:57]} 8. e4 {[%clk
0:02:48.4]} 8... Nb6 {[%clk 0:02:55.8]} 9. Bb3 {[%clk 0:02:47]} 9... Bg4 {[%clk
0:02:55.9]} 10. Be3 {[%clk 0:02:44.9]} 10... c6 {[%clk 0:02:51]} 11. h3 {[%clk
0:02:42.4]} 11... Bxf3 {[%clk 0:02:51.5]} 12. Qxf3 {[%clk 0:02:43.3]} 12... Nfd7
{[%clk 0:02:51.2]} 13. Rad1 {[%clk 0:02:41.8]} 13... e5 {[%clk 0:02:47.7]} 14.
d5 {[%clk 0:02:14.1]} 14... cxd5 {[%clk 0:02:46.6]} 15. Nxd5 {[%clk 0:02:10.8]}
15... Nxd5 {[%clk 0:02:46.8]} 16. Rxd5 {[%clk 0:02:11.7]} 16... Qe7 {[%clk
0:02:29.9]} 17. Rfd1 {[%clk 0:02:11.1]} 17... Rfd8 {[%clk 0:02:14.5]} 18. Bg5
{[%clk 0:01:59.6]} 18... Nf6 {[%clk 0:01:50.3]} 19. Qd3 {[%clk 0:01:20.3]} 19...
Rxd5 {[%clk 0:01:42]} 20. Bxd5 {[%clk 0:01:20]} 20... Qc7 {[%clk 0:01:38.1]} 21.
Rc1 {[%clk 0:00:59.3]} 21... Qd7 {[%clk 0:01:37.6]} 22. Bxf6 {[%clk 0:00:54.5]}
22... Bxf6 {[%clk 0:01:36.7]} 23. Qb3 {[%clk 0:00:51.2]} 23... Rb8 {[%clk
0:01:33.8]} 24. g3 {[%clk 0:00:46]} 24... Kg7 {[%clk 0:01:25.3]} 25. Kg2 {[%clk
0:00:45.6]} 25... h5 {[%clk 0:01:25]} 26. h4 {[%clk 0:00:45.2]} 26... b6 {[%clk
0:01:18.8]} 27. Qc4 {[%clk 0:00:41]} 27... Bd8 {[%clk 0:01:14.5]} 28. Rc3 {[%clk
0:00:33]} 28... b5 {[%clk 0:01:08.7]} 29. Qb3 {[%clk 0:00:29.3]} 29... Bb6
{[%clk 0:01:05.6]} 30. Rf3 {[%clk 0:00:27.4]} 30... f6 {[%clk 0:01:05.7]} 31.
Rd3 {[%clk 0:00:25.2]} 31... Bd4 {[%clk 0:01:05.3]} 32. Rd2 {[%clk 0:00:23.9]}
32... Rc8 {[%clk 0:00:56.3]} 33. Rc2 {[%clk 0:00:20.6]} 33... Bb6 {[%clk
0:00:38.9]} 34. Be6 {[%clk 0:00:20.1]} 34... Qxe6 {[%clk 0:00:36.5]} 35. Qxe6
{[%clk 0:00:18.9]} 35... Rxc2 {[%clk 0:00:37.1]} 36. Qe7+ {[%clk 0:00:19.2]}
36... Kg8 {[%clk 0:00:35.2]} 37. Qxf6 {[%clk 0:00:19]} 37... Rxf2+ {[%clk
0:00:34]} 38. Qxf2 {[%clk 0:00:18.6]} 38... Bxf2 {[%clk 0:00:34.5]} 39. Kxf2
{[%clk 0:00:19.5]} 39... Kf7 {[%clk 0:00:34.7]} 40. Kf3 {[%clk 0:00:19]} 40...
Ke6 {[%clk 0:00:33.7]} 41. g4 {[%clk 0:00:19.3]} 41... Kd6 {[%clk 0:00:34.1]}
42. b4 {[%clk 0:00:18]} 42... Kc6 {[%clk 0:00:22.8]} 43. gxh5 {[%clk 0:00:15.4]}
43... gxh5 {[%clk 0:00:22.8]} 44. Ke3 {[%clk 0:00:15]} 44... a5 {[%clk
0:00:17.4]} 45. a3 {[%clk 0:00:05.6]} 45... axb4 {[%clk 0:00:17.2]} 46. axb4
{[%clk 0:00:05.6]} 46... Kd6 {[%clk 0:00:17.9]} 47. Kd3 {[%clk 0:00:06.2]} 47...
Kc6 {[%clk 0:00:18.5]} 48. Ke3 {[%clk 0:00:06]} 48... Kd6 {[%clk 0:00:19.4]} 49.
Kd3 {[%clk 0:00:06.7]} 49... Kc6 {[%clk 0:00:20.3]} 50. Ke3 {[%clk 0:00:07]}
1/2-1/2

[Event "Early-Titled-Tuesday-Blitz-July-09-2024"]
[Site "Chess.com"]
[Date "2024.07.09"]
[Round "7"]
[White "Arteler"]
[Black "ChessSwole"]
[Result "0-1"]
[WhiteElo "2302"]
[BlackElo "2709"]
[TimeControl "180+1"]
[EndTime "9:20:20 PDT"]
[Termination "ChessSwole won by resignation"]

1. e4 {[%clk 0:02:46.3]} 1... e5 {[%clk 0:02:59.6]} 2. Nf3 {[%clk 0:02:43.4]}
2... Nc6 {[%clk 0:02:59.7]} 3. Bb5 {[%clk 0:02:41]} 3... a6 {[%clk 0:03:00.1]}
4. Ba4 {[%clk 0:02:41.1]} 4... Nf6 {[%clk 0:03:00.1]} 5. d4 {[%clk 0:02:34.7]}
5... exd4 {[%clk 0:02:58.4]} 6. O-O {[%clk 0:02:34.8]} 6... b5 {[%clk
0:02:55.3]} 7. Bb3 {[%clk 0:02:33]} 7... d6 {[%clk 0:02:54.4]} 8. Ng5 {[%clk
0:02:16]} 8... Ne5 {[%clk 0:02:48.7]} 9. f4 {[%clk 0:02:14.7]} 9... Bg4 {[%clk
0:02:46.4]} 10. Qxd4 {[%clk 0:02:11.1]} 10... c5 {[%clk 0:02:40.4]} 11. Qf2
{[%clk 0:02:11]} 11... Nc4 {[%clk 0:02:37.2]} 12. Bxc4 {[%clk 0:01:43.8]} 12...
bxc4 {[%clk 0:02:37]} 13. Nc3 {[%clk 0:01:38.7]} 13... h6 {[%clk 0:02:29]} 14.
e5 {[%clk 0:01:28.7]} 14... hxg5 {[%clk 0:02:17.5]} 15. exf6 {[%clk 0:01:29]}
15... Qxf6 {[%clk 0:01:43.7]} 16. Nd5 {[%clk 0:01:18.8]} 16... Qh6 {[%clk
0:01:38.2]} 17. h3 {[%clk 0:01:12.8]} 17... O-O-O {[%clk 0:01:36.2]} 18. fxg5
{[%clk 0:01:09.5]} 18... Qh5 {[%clk 0:01:26.9]} 19. Qd2 {[%clk 0:00:29.4]} 19...
Be6 {[%clk 0:01:21.5]} 20. Nf4 {[%clk 0:00:25.7]} 20... Qxg5 {[%clk 0:01:12.6]}
21. Qa5 {[%clk 0:00:25.5]} 21... Qe7 {[%clk 0:01:11.7]} 22. Qxa6+ {[%clk
0:00:23.6]} 22... Qb7 {[%clk 0:01:10.5]} 23. Qa5 {[%clk 0:00:17.1]} 23... d5
{[%clk 0:01:02.8]} 24. Nxe6 {[%clk 0:00:16.7]} 24... fxe6 {[%clk 0:01:03.7]} 25.
Bf4 {[%clk 0:00:17.2]} 25... Bd6 {[%clk 0:00:50.9]} 26. Bxd6 {[%clk 0:00:16.8]}
26... Rxd6 {[%clk 0:00:51.8]} 27. Qxc5+ {[%clk 0:00:17.6]} 27... Rc6 {[%clk
0:00:52]} 28. Qe3 {[%clk 0:00:17.4]} 28... Rd8 {[%clk 0:00:49.3]} 29. b3 {[%clk
0:00:17.2]} 29... d4 {[%clk 0:00:32]} 30. Qe5 {[%clk 0:00:17.1]} 30... d3 {[%clk
0:00:26.3]} 31. cxd3 {[%clk 0:00:16.7]} 31... cxd3 {[%clk 0:00:26.6]} 32. Rac1
{[%clk 0:00:14.8]} 32... d2 {[%clk 0:00:20.5]} 33. Qxe6+ {[%clk 0:00:15.1]}
33... Kc7 {[%clk 0:00:16]} 34. Rxc6+ {[%clk 0:00:15.2]} 34... Qxc6 {[%clk
0:00:16.3]} 35. Qxc6+ {[%clk 0:00:15.4]} 35... Kxc6 {[%clk 0:00:16.8]} 36. Rd1
{[%clk 0:00:16.3]} 36... Kc5 {[%clk 0:00:17.1]} 37. Kf2 {[%clk 0:00:17.2]} 37...
Kb4 {[%clk 0:00:17]} 38. a4 {[%clk 0:00:11.3]} 38... Kxb3 {[%clk 0:00:13.9]} 39.
a5 {[%clk 0:00:11.5]} 39... Kc2 {[%clk 0:00:14.3]} 40. Rxd2+ {[%clk 0:00:03]}
40... Kxd2 {[%clk 0:00:15.2]} 41. Kf3 {[%clk 0:00:03.9]} 41... Rd4 {[%clk
0:00:14.2]} 42. g4 {[%clk 0:00:01]} 42... g5 {[%clk 0:00:14.1]} 43. h4 {[%clk
0:00:01.9]} 43... gxh4 {[%clk 0:00:14.2]} 0-1